bitfinex/quotes_ETHUSD_20250611
["timestamp","ask_amount","ask_price","bid_price","bid_amount"]
[1749683917323,20.943075,2772.1,2772.0,2.85663419]
[1749683917523,20.83039491,2772.1,2772.0,2.85663419]
[1749683917934,20.94307474,2772.1,2772.0,2.85663419]
[1749683918137,20.83039491,2772.1,2772.0,2.85663419]
[1749683918463,21.19939659,2772.1,2772.0,2.85663419]
[1749683919050,0.798,2772.4,2772.0,2.85663419]
[1749683919222,0.11266899,2772.3,2772.0,2.85663419]
[1749683919426,10.798,2772.4,2772.0,2.85663419]
[1749683919645,0.11266468,2772.3,2772.0,2.85663419]
[1749683919855,10.798,2772.4,2772.0,2.85663419]
[1749683920023,2.04276577,2772.3,2772.0,2.85663419]
[1749683920334,9.62965772,2772.2,2772.0,2.85663419]
[1749683920525,9.74232935,2772.2,2772.0,3.84763419]
[1749683920726,9.74232942,2772.2,2772.0,3.84763419]
[1749683920926,9.74232939,2772.2,2772.0,3.84763419]
[1749683921165,0.74277627,2772.1,2772.0,3.84763419]
[1749683921540,0.74277627,2772.1,2772.0,2.85663419]
[1749683921541,15.11474974,2772.1,2772.0,2.85663419]
[1749683922262,11.50737627,2772.1,2772.0,2.85663419]
[1749683922963,11.62005671,2772.1,2772.0,2.85663419]
[1749683923143,10.74277627,2772.1,2772.0,2.85663419]
[1749683923337,10.85545003,2772.1,2772.0,2.85663419]
[1749683923542,10.74277627,2772.1,2772.0,2.85663419]
[1749683923941,0.74277627,2772.1,2772.0,2.85663419]
[1749683926675,0.74277627,2772.1,2772.0,3.84763419]
[1749683927031,9.62965772,2772.2,2772.0,3.84763419]
[1749683928180,0.93027193,2772.3,2772.0,3.84763419]
[1749683928496,23.37165772,2772.4,2772.0,3.84763419]
[1749683929187,0.11266772,2772.3,2772.0,3.84763419]
[1749683929345,2.34843254,2772.2,2772.0,3.84763419]
[1749683931377,24.01283119,2772.1,2772.0,2.43579919]
[1749683931577,26.73183119,2772.1,2772.0,2.43579919]
[1749683931981,26.84451486,2772.1,2772.0,2.43579919]
[1749683932142,26.73183119,2772.1,2772.0,2.43579919]
[1749683932344,11.32559054,2772.1,2772.0,2.43579919]
[1749683932540,10.4371095,2772.1,2772.0,2.43579919]
[1749683933271,0.4371095,2772.1,2772.0,2.43579919]
[1749683933575,0.11266607,2772.3,2772.0,2.43579919]
[1749683933741,10.0,2772.4,2772.1,0.991]
[1749683934280,10.7536,2772.5,2772.1,0.991]
[1749683935365,10.86626147,2772.5,2772.1,0.991]
[1749683935566,9.62965772,2772.3,2772.2,0.991]
[1749683936344,12.16611332,2772.4,2772.2,0.991]
[1749683936580,12.05344964,2772.4,2772.2,0.991]
[1749683936788,12.1661119,2772.4,2772.2,0.991]
[1749683936948,12.05344964,2772.4,2772.0,2.43579919]
[1749683937279,6.29595341,2772.1,2772.0,2.43579919]
[1749683937453,6.29595341,2772.1,2772.0,3.42679919]
[1749683938479,6.65770353,2772.1,2772.0,3.42679919]
[1749683940389,6.29595341,2772.1,2772.0,3.42679919]
[1749683940750,6.29595341,2772.1,2772.0,2.43579919]
[1749683940947,7.17782367,2772.1,2772.0,2.43579919]
[1749683941191,10.78520382,2772.1,2772.0,2.43579919]
[1749683941494,7.06515341,2772.1,2772.0,2.43579919]
[1749683941662,8.61927652,2772.1,2772.0,2.43579919]
[1749683941986,28.95992624,2772.1,2772.0,2.43579919]
[1749683942208,29.93663289,2772.1,2772.0,2.43579919]
[1749683942588,29.93663939,2772.1,2772.0,2.43579919]
[1749683942790,2.169,2771.7,2771.0,0.991]
[1749683942992,6.29595341,2771.1,2771.0,0.991]
[1749683943289,6.29595341,2771.1,2770.7,0.8011]
[1749683943290,0.18,2771.0,2770.7,0.8011]
[1749683943490,0.18,2770.7,2770.6,0.991]
[1749683943688,9.62458681,2771.1,2770.6,0.991]
[1749683943926,11.06603276,2771.1,2770.6,0.991]
[1749683944213,11.17874694,2771.1,2770.6,0.991]
[1749683944536,0.11271419,2771.1,2770.6,0.991]
[1749683944825,0.11270612,2771.3,2770.7,0.8026]
[1749683944980,0.11270209,2771.6,2770.7,0.8026]
[1749683945184,3.742,2771.7,2770.9,0.8026]
[1749683945585,0.11269222,2771.6,2770.9,0.8026]
[1749683945823,3.742,2771.7,2770.9,0.8026]
[1749683946119,13.742,2771.9,2770.9,0.8026]
[1749683946899,0.11268921,2771.8,2770.9,0.8026]
[1749683947116,0.11268876,2771.7,2770.9,0.8026]
[1749683947300,0.11268786,2771.8,2770.9,0.8026]
[1749683947499,13.742,2771.9,2770.9,0.8026]
[1749683948925,0.11268748,2771.8,2770.9,0.8026]
[1749683949087,0.11268755,2771.7,2770.9,0.8026]
[1749683949291,13.742,2771.9,2770.9,0.8026]
[1749683950788,10.0,2771.9,2770.9,0.8026]
[1749683951428,0.7636,2772.2,2770.9,0.8026]
[1749683951601,14.13018681,2772.4,2770.9,0.8026]
[1749683952006,3.6071301,2772.3,2770.9,0.8026]
[1749683952403,9.62458681,2772.1,2770.9,0.8026]
[1749683952609,9.62458681,2772.1,2771.2,0.7601]
[1749683954420,3.742,2772.3,2771.2,0.7601]
[1749683954620,9.62458681,2772.2,2771.2,0.7601]
[1749683955750,3.742,2772.3,2771.2,0.7601]
[1749683955949,9.62458681,2772.2,2771.2,0.7601]
[1749683956154,9.62458681,2772.2,2771.4,0.8232]
[1749683957055,9.62458681,2771.9,2771.4,0.8232]
[1749683957264,9.62458681,2771.9,2771.5,0.991]
[1749683957472,9.62458681,2771.6,2771.4,0.8232]
[1749683957972,9.62458681,2771.6,2771.5,0.991]
[1749683958127,0.18,2771.5,2771.4,0.991]
[1749683958329,10.58704549,2771.6,2771.4,0.991]
[1749683958528,0.18,2771.4,2771.2,0.8169]
[1749683958848,10.58704549,2771.6,2771.3,0.991]
[1749683962686,0.18,2771.3,2771.2,0.8169]
[1749683962885,0.18,2771.3,2771.2,1.8079]
[1749683965963,0.18,2771.3,2771.2,0.991]
[1749683966964,0.18,2771.3,2770.8,10.0]
[1749683967189,6.29900237,2771.4,2770.9,0.991]
[1749683968374,6.29900237,2771.4,2771.0,0.8183]
[1749683968578,6.29900237,2771.4,2771.1,0.991]
[1749683969375,6.29900237,2771.2,2771.0,0.8183]
[1749683969576,0.18,2771.1,2770.6,4.561]
[1749683969889,6.29900237,2771.0,2770.7,0.991]
[1749683970089,6.29900237,2771.2,2770.7,0.991]
[1749683970278,7.00151722,2771.2,2770.7,0.991]
[1749683972597,0.18,2770.7,2770.6,0.82]
[1749683972810,0.18,2770.7,2770.6,1.811]
[1749683973818,0.18,2770.7,2770.6,5.552]
[1749683975303,0.18,2770.7,2770.6,1.81]
[1749683977313,0.18,2770.7,2770.6,4.731]
[1749683977515,0.82790024,2770.7,2770.6,0.99]
[1749683977715,0.82790024,2770.7,2770.5,6.233]
[1749683977915,6.29900237,2770.6,2770.5,6.233]
[1749683978121,6.29900237,2770.6,2770.5,7.223]
[1749683980663,0.64790024,2770.7,2770.5,7.223]
[1749683980808,6.73789239,2770.6,2770.5,7.223]
[1749683984146,6.73789239,2770.6,2770.5,6.233]
[1749683985050,0.43889002,2770.6,2770.5,6.233]
[1749683985249,4.33447444,2771.4,2770.5,9.975]
[1749683985250,7.07400237,2771.3,2770.5,9.975]
[1749683985423,7.07400237,2771.3,2770.6,0.8011]
[1749683985947,6.29900237,2771.3,2770.7,3.742]
[1749683988257,0.18,2770.7,2770.5,6.233]
[1749683988427,6.67791474,2770.6,2770.5,6.233]
[1749683988633,6.29900237,2770.6,2770.5,6.233]
[1749683989750,6.29900237,2770.6,2770.5,7.223]
[1749683993375,6.29900237,2770.6,2770.5,6.233]
[1749683993556,6.29900237,2770.6,2770.5,7.223]
[1749683993763,7.37812261,2770.6,2770.5,7.223]
[1749683994271,7.37812261,2770.6,2770.5,6.233]
[1749683994471,7.37812261,2770.6,2770.5,7.223]
[1749683994671,3.60979785,2770.3,2769.9,0.7539]
[1749683994877,3.60979785,2770.3,2769.3,0.36251226]
[1749683994878,0.36097979,2770.3,2770.0,0.99]
[1749683995053,3.97073892,2770.3,2770.0,0.99]
[1749683995248,0.36097979,2770.3,2770.0,0.99]
[1749683996039,6.29900237,2770.2,2770.0,0.99]
[1749683996360,1.07912024,2770.6,2770.1,0.7631]
[1749683996673,11.07912024,2770.6,2770.1,0.7631]
[1749683997252,10.0,2770.8,2770.1,0.7631]
[1749683997571,10.04100237,2770.9,2770.1,0.7631]
[1749683997946,6.29900237,2770.9,2770.1,0.7631]
[1749683999273,10.0,2770.9,2770.1,0.7631]
[1749684000251,9.62463495,2770.5,2770.1,0.7631]
[1749684000572,13.36563495,2770.8,2770.2,0.99]
[1749684001182,13.36563495,2770.8,2770.1,0.7631]
[1749684001374,0.18,2770.2,2770.1,0.7631]
[1749684001550,0.18,2770.2,2770.1,0.99]
[1749684001551,9.80463495,2770.2,2770.1,0.99]
[1749684003353,9.80463495,2770.2,2769.5,0.831]
[1749684003553,9.62463495,2770.2,2769.6,4.731]
[1749684004618,9.62463495,2770.2,2769.7,3.741]
[1749684005102,9.62463495,2770.2,2769.5,0.831]
[1749684005447,11.32215798,2770.2,2769.6,0.99]
[1749684005643,9.62463495,2769.9,2769.1,0.8253]
[1749684005911,9.62463495,2769.9,2769.0,6.232]
[1749684005912,4.39369933,2769.7,2769.6,0.99]
[1749684006552,0.18,2769.6,2769.2,0.99]
[1749684006784,3.61095283,2769.4,2769.2,0.99]
[1749684006983,0.36109528,2769.3,2769.2,0.99]
[1749684007261,0.7832,2769.2,2769.0,6.232]
[1749684009450,4.5252,2769.2,2769.0,6.232]
[1749684014962,4.5252,2769.2,2768.5,0.8253]
[1749684014963,8.1363907,2769.2,2768.5,0.8253]
[1749684015200,8.1363907,2769.2,2768.6,0.99]
[1749684015201,0.18,2768.8,2768.6,0.99]
[1749684015406,13.36663495,2769.0,2768.6,0.99]
[1749684015573,0.72692373,2768.9,2768.6,0.99]
[1749684017100,0.72692373,2768.9,2768.5,0.99]
[1749684017101,0.18,2768.6,2768.5,0.99]
[1749684017277,9.62463495,2768.7,2768.3,0.7972]
[1749684017495,10.9677,2768.3,2767.5,0.99]
[1749684017718,16.19437355,2767.8,2767.5,0.99]
[1749684017920,3.742,2767.7,2767.5,0.99]
[1749684020108,0.18,2767.5,2767.2,0.7671]
[1749684020302,3.742,2767.7,2767.3,0.99]
[1749684020619,0.3922,2767.5,2767.3,0.99]
[1749684022722,0.18,2767.3,2767.2,0.99]
[1749684022927,0.3922,2767.5,2767.2,0.99]
[1749684025808,0.11285495,2767.4,2767.2,0.99]
[1749684026147,9.62463495,2767.4,2767.2,0.99]
[1749684026330,0.11286004,2767.3,2767.2,0.99]
[1749684026513,10.32045396,2767.4,2767.2,0.99]
[1749684027029,0.11286115,2767.3,2767.2,0.99]
[1749684027233,10.32045396,2767.4,2767.2,0.99]
[1749684027459,10.32045396,2767.4,2766.1,0.55]
[1749684027460,0.18,2767.2,2766.5,0.8304]
[1749684027610,0.18,2767.2,2766.6,0.991]
[1749684027611,9.62463495,2767.0,2766.6,0.991]
[1749684028239,1.5002554,2767.2,2766.6,0.991]
[1749684029972,0.11287297,2767.1,2766.6,0.991]
[1749684030120,0.11287143,2767.0,2766.6,0.991]
[1749684030320,0.69581901,2767.4,2766.7,0.8178]
[1749684030520,0.17834739,2768.1,2766.6,0.991]
[1749684030521,10.0,2767.8,2766.9,0.8178]
[1749684033678,9.62463495,2767.6,2766.9,0.8178]
[1749684033837,9.62463495,2767.6,2767.0,0.991]
[1749684034372,0.18,2767.0,2766.9,0.8178]
[1749684034577,0.18,2767.0,2766.9,1.8088]
[1749684041289,0.18,2767.0,2766.9,1.98968]
[1749684041461,0.18,2767.0,2766.9,12.53968]
[1749684042502,0.18,2767.0,2766.9,16.28368]
[1749684045993,0.18,2767.0,2766.9,25.90831495]
[1749684046179,0.7764,2768.5,2767.1,0.55]
[1749684046379,0.18,2767.4,2767.3,10.55]
[1749684046557,0.18,2767.4,2767.3,15.0529]
[1749684048397,0.18,2767.4,2767.3,15.4929]
[1749684053808,0.8321,2768.4,2767.3,15.4929]
[1749684053809,0.7876,2768.7,2767.5,0.8061]
[1749684053994,0.7876,2768.7,2767.7,0.8061]
[1749684054306,0.7876,2768.7,2767.8,3.742]
[1749684057288,0.7876,2768.7,2767.7,0.8061]
[1749684057611,0.7876,2768.7,2767.8,4.732]
[1749684058377,0.7876,2768.7,2767.7,0.8061]
[1749684058582,9.62463495,2768.2,2767.8,0.99]
[1749684059615,0.8182,2768.4,2767.8,0.99]
[1749684061284,7.13114452,2768.4,2767.8,0.99]
[1749684063789,7.13114452,2768.4,2767.7,3.741]
[1749684063790,0.18,2767.8,2767.7,3.741]
[1749684064019,6.31294452,2768.2,2767.7,4.731]
[1749684064502,0.8182,2768.4,2767.7,4.731]
[1749684064701,6.31294452,2768.2,2767.7,4.731]
[1749684065028,6.31294452,2768.4,2767.8,0.797]
[1749684065322,0.8115,2768.6,2767.8,0.797]
[1749684065323,7.12444452,2768.6,2767.8,0.797]
[1749684065832,6.31294452,2768.6,2767.8,0.797]
[1749684066993,0.775,2768.8,2767.8,0.797]
[1749684067189,0.775,2768.8,2767.9,0.7847]
[1749684067647,0.86314148,2769.1,2768.1,0.7988]
[1749684067648,0.88340255,2769.0,2768.1,0.7988]
[1749684067850,2.49023471,2769.0,2768.1,1.50997445]
[1749684068059,0.1127993,2768.9,2768.1,0.7988]
[1749684068273,7.08354452,2769.0,2768.1,0.7988]
[1749684070150,7.19633993,2769.0,2768.1,0.7988]
[1749684070346,0.7793,2769.3,2768.1,0.7988]
[1749684070662,0.11279036,2769.2,2768.3,0.8188]
[1749684070963,7.09224452,2769.3,2768.4,0.8188]
[1749684071276,7.09224452,2769.3,2768.5,0.989]
[1749684073170,7.45469777,2769.3,2768.5,0.989]
[1749684073670,6.31294452,2769.1,2768.5,0.989]
[1749684074167,0.7793,2769.3,2768.5,0.989]
[1749684074367,6.31294452,2769.0,2768.5,0.989]
[1749684074665,0.18,2768.5,2768.4,0.8188]
[1749684074870,0.18,2768.5,2768.4,1.8068]
[1749684075056,0.18,2768.5,2768.4,3.05879745]
[1749684076476,0.18,2768.5,2768.4,19.37174197]
[1749684076778,0.18,2768.5,2768.4,19.92174197]
[1749684077969,0.18,2768.5,2768.4,13.60879745]
[1749684078299,0.18,2768.5,2768.4,23.66174197]
[1749684079096,0.7934,2769.8,2768.6,0.7601]
[1749684079261,6.4257144,2769.9,2768.9,0.7601]
[1749684079262,6.31294452,2769.9,2768.9,0.7601]
[1749684079469,7.05978259,2769.9,2769.1,0.7601]
[1749684079661,0.7934,2770.0,2769.0,3.74]
[1749684079662,0.7934,2770.4,2769.3,0.7601]
[1749684079897,0.7934,2770.4,2769.2,7.30094452]
[1749684079898,0.7934,2770.4,2769.5,0.7601]
[1749684080094,6.31294452,2770.3,2769.6,3.74]
[1749684081293,0.7934,2770.4,2769.6,3.74]
[1749684081468,0.7934,2770.4,2769.6,4.19001]
[1749684083590,0.7904,2771.4,2770.3,10.0]
[1749684083794,5.828,2771.7,2770.5,0.7662]
[1749684084002,6.4108,2771.7,2770.6,0.54932]
[1749684084419,6.4108,2771.7,2770.7,0.7662]
[1749684084615,1.4108,2771.7,2770.7,0.7662]
[1749684085794,1.4108,2771.7,2770.8,0.988]
[1749684086114,1.4108,2771.7,2770.9,4.726]
[1749684086286,1.4108,2771.7,2771.0,0.988]
[1749684087828,1.4108,2771.7,2771.1,0.988]
[1749684088000,0.828,2771.7,2771.1,0.988]
[1749684090398,0.18,2771.1,2770.7,0.7662]
[1749684090599,9.62871914,2771.6,2770.7,0.7662]
[1749684090600,9.62871914,2771.6,2770.8,0.988]
[1749684092399,9.62871914,2771.6,2770.7,0.7662]
[1749684092631,9.62871914,2771.6,2770.9,0.988]
[1749684092969,10.67439105,2771.6,2770.9,0.988]
[1749684093147,10.67439105,2771.6,2771.0,0.988]
[1749684093575,10.67439105,2771.6,2770.7,0.7662]
[1749684093721,0.18,2770.7,2769.8,0.7844]
[1749684094033,0.18,2770.1,2770.0,0.7844]
[1749684094229,0.18,2770.1,2770.0,11.3344]
[1749684094632,0.18,2770.1,2770.0,1.3344]
[1749684094836,0.18,2770.1,2770.0,6.0584]
[1749684095758,0.18,2770.1,2770.0,6.42426332]
[1749684096061,0.18,2770.1,2770.0,3.75556157]
[1749684096266,0.18,2770.1,2770.0,1.7724]
[1749684104500,0.18,2770.1,2770.0,0.988]
[1749684104650,0.18,2770.1,2770.0,0.987]
[1749684105075,0.9866,2770.1,2770.0,0.987]
[1749684106582,0.18,2770.1,2770.0,0.987]
[1749684107159,0.18,2770.1,2770.0,13.24992191]
[1749684107660,0.18,2770.1,2770.0,2.26292191]
[1749684107849,0.18,2770.1,2770.0,0.987]
[1749684112657,0.18,2770.1,2769.9,0.7711]
[1749684112851,0.11273158,2770.4,2770.0,0.987]
[1749684113191,0.11273043,2770.3,2770.0,0.987]
[1749684113498,0.7929,2770.5,2770.0,0.987]
[1749684114395,0.18,2770.0,2769.9,3.735]
[1749684114600,0.18,2770.0,2769.9,4.722]
[1749684116078,0.18,2770.0,2769.9,0.987]
[1749684116274,0.18,2770.0,2769.9,4.722]
[1749684118817,0.18,2770.0,2769.7,6.236]
[1749684118987,0.7934,2770.3,2769.9,0.987]
[1749684119195,1.83561191,2770.3,2769.9,0.987]
[1749684120399,0.33775383,2770.7,2769.9,0.987]
[1749684120400,0.7934,2770.6,2769.9,0.987]
[1749684122400,0.7934,2770.6,2770.0,0.8202]
[1749684122566,0.33775383,2770.7,2770.0,0.8202]
[1749684122567,0.33775383,2770.7,2770.1,3.735]
[1749684122763,0.33775383,2770.7,2770.3,0.7557]
[1749684127008,0.33775383,2770.7,2770.4,4.721]
[1749684127215,0.33775383,2770.7,2770.5,0.54767]
[1749684128836,0.33775383,2770.7,2770.6,4.719]
[1749684131133,0.18,2770.6,2770.5,0.54767]
[1749684131334,0.18,2770.6,2770.5,14.719]
[1749684131737,0.18,2770.6,2770.5,10.0]
[1749684131936,0.18,2770.6,2770.5,14.719]
[1749684133013,0.18,2770.6,2770.5,10.0]
[1749684133230,0.18,2770.6,2770.5,14.718]
[1749684133407,0.18,2770.6,2770.5,16.26537]
[1749684135255,0.18,2770.6,2770.5,17.08457]
[1749684135904,0.18,2770.6,2770.5,17.63457]
[1749684136105,0.18,2770.9,2770.8,0.8199]
[1749684136342,0.18,2770.9,2770.8,25.86860914]
[1749684136543,9.62871914,2772.6,2771.0,0.8199]
[1749684136544,0.7515,2772.2,2771.0,0.8199]
[1749684136747,0.7515,2772.2,2771.3,0.8199]
[1749684136942,0.7515,2772.2,2771.4,4.718]
[1749684138443,0.7515,2772.2,2771.5,10.0]
[1749684138644,10.7515,2772.7,2771.7,0.8199]
[1749684138844,10.7515,2772.7,2771.8,3.733]
[1749684139947,0.36505928,2772.9,2771.4,0.7952]
[1749684139948,0.18,2771.8,2771.4,0.7952]
[1749684140248,0.7811,2772.1,2771.5,4.717]
[1749684140916,10.7688,2772.8,2771.5,4.717]
[1749684141115,21.87153285,2772.8,2771.6,0.55122]
[1749684141316,10.0,2772.7,2771.6,0.55122]
[1749684141624,0.8025,2772.6,2771.6,0.55122]
[1749684141943,10.0,2772.7,2771.4,0.7952]
[1749684141944,9.62871914,2772.5,2771.4,0.7952]
[1749684142126,9.62871914,2772.2,2771.7,0.985]
[1749684142851,0.18,2771.7,2771.6,3.732]
[1749684143167,0.8025,2771.9,2771.6,0.985]
[1749684144344,0.18,2771.6,2771.5,3.732]
[1749684144557,0.18,2771.6,2771.5,4.717]
[1749684144863,0.18,2771.6,2771.2,0.8079]
[1749684145163,0.8025,2771.9,2771.5,4.716]
[1749684145632,0.8025,2771.9,2771.5,0.985]
[1749684146556,10.43121914,2771.9,2771.5,0.985]
[1749684146758,0.18,2771.5,2770.9,0.7711]
[1749684146945,0.18,2771.5,2771.0,4.716]
[1749684147256,9.62871914,2771.6,2771.0,4.716]
[1749684147657,11.47434105,2771.9,2771.0,4.716]
[1749684147857,0.8025,2771.9,2771.0,4.716]
[1749684148060,0.8025,2771.9,2771.1,10.0]
[1749684148235,0.7954,2772.1,2771.2,0.7711]
[1749684149824,0.7954,2772.1,2771.3,4.716]
[1749684150024,1.04241191,2772.0,2771.3,4.716]
[1749684151338,0.7954,2772.1,2771.3,4.716]
[1749684156340,9.62871914,2772.2,2771.4,0.7728]
[1749684157933,0.7624,2772.4,2771.4,10.7728]
[1749684158132,10.41641914,2772.8,2771.5,0.8216]
[1749684158342,9.62871914,2772.5,2771.7,0.8216]
[1749684158660,9.62871914,2772.2,2771.8,0.985]
[1749684159063,9.62871914,2772.2,2771.5,0.7773]
[1749684159263,9.62871914,2772.2,2771.6,0.984]
[1749684160059,0.7886,2772.4,2771.6,0.984]
[1749684160241,9.62871914,2772.5,2771.8,0.7585]
[1749684161648,9.62871914,2772.5,2771.9,0.984]
[1749684162074,0.18,2771.9,2771.8,0.7585]
[1749684162373,0.18,2771.9,2771.8,1.7425]
[1749684164738,0.18,2771.9,2771.3,0.7588]
[1749684164938,9.62871914,2772.2,2771.6,0.7588]
[1749684165135,10.44261914,2772.5,2771.6,0.7588]
[1749684168046,9.62871914,2772.5,2771.6,0.7588]
[1749684169169,0.7755,2772.4,2771.6,0.7588]
[1749684169385,6.29727397,2771.8,2771.7,0.984]
[1749684169838,6.29727397,2772.0,2771.7,0.984]
[1749684171345,9.61550866,2772.3,2771.7,0.984]
[1749684175003,10.65460953,2772.3,2771.6,0.7588]
[1749684175310,9.61550866,2771.7,2771.4,7.0323]
[1749684175460,9.61550866,2771.7,2771.5,0.984]
[1749684175657,9.61550866,2771.7,2771.6,0.984]
[1749684177907,9.61550866,2771.7,2771.4,6.229]
[1749684178073,9.61550866,2771.7,2771.6,0.984]
[1749684178270,9.61550866,2771.7,2771.4,6.229]
[1749684178579,9.61550866,2771.7,2771.5,0.984]
[1749684179170,9.72819113,2771.7,2771.5,0.984]
[1749684179406,9.61550866,2771.7,2771.5,0.984]
[1749684179708,10.65409953,2771.7,2771.5,0.984]
[1749684179884,0.18,2771.5,2771.4,6.229]
[1749684180083,0.18,2771.5,2771.4,7.213]
[1749684180084,0.9799,2771.5,2771.4,7.213]
[1749684180272,0.9799,2771.5,2771.4,6.229]
[1749684180606,0.9799,2771.5,2771.4,7.213]
[1749684180806,1.6877503,2771.5,2771.4,7.213]
[1749684187315,1.6877503,2771.5,2771.4,0.984]
[1749684187509,0.8878503,2771.5,2771.4,0.984]
[1749684191231,0.8878503,2771.5,2771.2,0.983]
[1749684191431,9.61550866,2771.3,2771.2,0.983]
[1749684193216,6.30028115,2771.3,2771.2,0.983]
[1749684195915,0.18,2771.2,2770.8,4.5601]
[1749684196121,6.30028115,2771.3,2770.9,0.983]
[1749684200949,0.7762,2771.7,2770.9,0.983]
[1749684201134,6.30028115,2771.4,2770.9,0.983]
[1749684206234,3.728,2771.6,2770.9,0.983]
[1749684206434,6.30028115,2771.5,2770.9,0.983]
[1749684206660,6.30028115,2771.4,2770.9,0.983]
[1749684206850,0.33780817,2771.8,2771.0,7.08808115]
[1749684207048,1.90586695,2772.1,2771.1,0.7878]
[1749684207049,6.30028115,2772.1,2771.1,0.7878]
[1749684207351,6.30028115,2772.1,2771.3,0.7878]
[1749684207746,6.30028115,2771.9,2771.3,0.7878]
[1749684208065,6.30028115,2771.9,2771.3,1.23938]
[1749684208247,6.30028115,2771.5,2771.0,0.7829]
[1749684208447,0.7637,2771.7,2771.4,0.983]
[1749684209327,0.7637,2771.7,2771.0,0.7829]
[1749684209328,3.728,2771.8,2771.0,0.7829]
[1749684209568,6.30028115,2771.8,2771.2,0.7772]
[1749684213171,6.30028115,2771.6,2771.2,0.7772]
[1749684213373,6.30028115,2771.4,2771.3,0.983]
[1749684213873,6.30028115,2771.4,2771.2,0.7772]
[1749684214072,0.18,2771.3,2771.2,0.7772]
[1749684214381,0.18,2771.3,2771.2,1.7602]
[1749684214878,0.18,2771.3,2771.2,0.983]
[1749684216238,0.18,2771.3,2771.1,0.8234]
[1749684216444,6.30028115,2771.4,2771.2,0.983]
[1749684218671,6.30028115,2771.6,2771.2,0.983]
[1749684219675,10.80078115,2772.0,2771.2,1.53634]
[1749684220694,6.30028115,2771.8,2771.2,1.53634]
[1749684221572,6.30028115,2771.8,2771.3,0.7913]
[1749684223189,6.30028115,2772.2,2771.3,0.7913]
[1749684224623,6.30028115,2772.0,2771.3,0.7913]
[1749684224787,6.30028115,2772.0,2771.5,0.8146]
[1749684225116,6.30028115,2772.0,2771.6,3.726]
[1749684228418,6.30028115,2772.2,2771.6,3.726]
[1749684228588,6.30028115,2772.2,2771.7,0.8085]
[1749684232796,6.30028115,2772.4,2771.7,0.8085]
[1749684232997,6.30028115,2772.4,2771.8,0.45345]
[1749684233320,6.30028115,2772.2,2771.8,0.45345]
[1749684233526,6.30028115,2772.0,2771.8,0.45345]
[1749684233726,6.30028115,2772.0,2771.7,0.8085]
[1749684233904,6.30028115,2772.0,2771.8,0.981]
[1749684234829,6.30028115,2772.0,2771.7,0.8085]
[1749684234830,0.18,2771.8,2771.7,0.8085]
[1749684235128,0.18,2771.8,2771.7,1.7895]
[1749684237286,6.48028115,2771.8,2771.7,0.8085]
[1749684237505,6.48028115,2771.8,2771.7,1.7895]
[1749684239298,0.18,2771.8,2771.7,1.7895]
[1749684239713,0.18,2771.8,2771.7,2.16919001]
[1749684241113,1.19941407,2772.6,2771.7,1.36069001]
[1749684241325,6.30028115,2772.5,2771.8,0.8087]
[1749684244227,10.0,2772.8,2771.8,0.8087]
[1749684244424,6.30028115,2772.6,2771.8,0.8087]
[1749684244629,6.30028115,2772.6,2772.0,0.7617]
[1749684244828,6.30028115,2772.6,2772.1,0.8325]
[1749684245466,6.30028115,2773.0,2772.1,0.8325]
[1749684245652,6.30028115,2773.0,2772.2,0.45565]
[1749684245844,6.30028115,2773.0,2772.3,0.7595]
[1749684247963,6.30028115,2773.7,2772.7,10.0]
[1749684248170,6.30028115,2772.9,2772.8,4.704]
[1749684248479,6.30028115,2772.9,2772.8,0.981]
[1749684249386,6.30028115,2773.1,2772.8,0.981]
[1749684249986,6.30028115,2773.1,2772.9,0.8002]
[1749684250160,10.0,2773.5,2772.9,0.8002]
[1749684250477,6.30028115,2773.3,2772.9,0.8002]
[1749684251267,10.0,2773.5,2772.9,0.8002]
[1749684251490,6.30028115,2773.3,2772.9,0.8002]
[1749684251693,10.0,2773.5,2772.9,0.8002]
[1749684251863,6.30028115,2773.4,2772.9,0.8002]
[1749684252061,6.30028115,2773.2,2772.9,0.8002]
[1749684254363,0.18,2772.9,2772.6,3.722]
[1749684254559,0.18,2772.9,2772.7,1.3512]
[1749684254763,6.30028115,2773.0,2772.7,1.3512]
[1749684254946,6.30028115,2773.0,2772.7,2.1518]
[1749684256102,4.5005,2773.6,2772.7,2.1518]
[1749684256318,6.30028115,2773.2,2772.7,2.1518]
[1749684256475,6.30028115,2773.2,2772.8,0.21518]
[1749684257305,6.30028115,2773.1,2772.8,0.21518]
[1749684257797,6.30028115,2773.1,2772.9,0.979]
[1749684259019,4.5005,2773.6,2772.9,0.979]
[1749684259020,0.33785296,2773.4,2772.9,0.979]
[1749684259176,6.30028115,2773.2,2772.9,0.979]
[1749684259513,6.30028115,2773.2,2772.9,1.19418]
[1749684259886,6.30028115,2773.2,2772.9,0.979]
[1749684262514,0.18,2772.9,2772.7,1.1728]
[1749684262691,6.30028115,2773.2,2772.8,0.979]
[1749684263540,6.30028115,2773.0,2772.7,0.8006]
[1749684263726,0.18,2772.8,2772.7,0.8006]
[1749684263924,0.18,2772.8,2772.7,1.7796]
[1749684266432,6.48028115,2772.8,2772.7,0.979]
[1749684266738,0.18,2772.8,2772.7,0.979]
[1749684267113,0.18,2772.8,2772.7,1.7579]
[1749684267725,0.18,2772.8,2772.7,0.7789]